{"text_format":"3","workbook":"xlsx","n_sheets":1,"sheets":["Udlån af biblioteksbøger"],"not_rendered":{"defined_names":4},"read":"whole","date_system":"1900"}

{"sheet":"Udlån af biblioteksbøger","index":0,"n_rows":9,"n_cols":8,"rows_kept":9,"merged":[[0,1,0,4],[0,5,0,6]]}
[null,"Ark til Udlån af biblioteksbøger",{"$nulls":3},"ANTAL DAGE INDTIL OVERSKREDET: ",null,10]
["Overskredet","STUDERENDE","KONTAKTMAILADRESSE","KONTAKTTELEFONNUMMER","BOGENS TITEL","UDLÅNSDATO","AFLEVERINGSDATO","DAGE"]
[{"$f":"IFERROR(((Bøger[[#This Row],[UDLÅNSDATO]]+Daggrænse)<TODAY())*(LEN(Bøger[[#This Row],[AFLEVERINGSDATO]])=0)*(LEN(Bøger[[#This Row],[UDLÅNSDATO]])>0),0)","v":0},"Maria Cameron","nogen@example.com","+45 00 00 00 00","Det lille hus på prærien",{"$f":"DATE(YEAR(TODAY()),1,14)","v":"2018-01-14"},{"$f":"DATE(YEAR(TODAY()),1,21)","v":"2018-01-21"},{"$f":"IFERROR(IF(Bøger[[#This Row],[AFLEVERINGSDATO]]=\"\",IF(Bøger[[#This Row],[UDLÅNSDATO]]<>\"\", TODAY()-Bøger[[#This Row],[UDLÅNSDATO]],\"\"),Bøger[[#This Row],[AFLEVERINGSDATO]]-Bøger[[#This Row],[UDLÅNSDATO]]), \"\")","v":7}]
[{"$f":"IFERROR(((Bøger[[#This Row],[UDLÅNSDATO]]+Daggrænse)<TODAY())*(LEN(Bøger[[#This Row],[AFLEVERINGSDATO]])=0)*(LEN(Bøger[[#This Row],[UDLÅNSDATO]])>0),0)","v":0},"Stephen Deming","nogen@example.com","+45 01 01 01 01","Pippi Langstrømpe",{"$f":"DATE(YEAR(TODAY()),2,15)","v":"2018-02-15"},{"$f":"DATE(YEAR(TODAY()),2,18)","v":"2018-02-18"},{"$f":"IFERROR(IF(Bøger[[#This Row],[AFLEVERINGSDATO]]=\"\",IF(Bøger[[#This Row],[UDLÅNSDATO]]<>\"\", TODAY()-Bøger[[#This Row],[UDLÅNSDATO]],\"\"),Bøger[[#This Row],[AFLEVERINGSDATO]]-Bøger[[#This Row],[UDLÅNSDATO]]), \"\")","v":3}]
[{"$f":"IFERROR(((Bøger[[#This Row],[UDLÅNSDATO]]+Daggrænse)<TODAY())*(LEN(Bøger[[#This Row],[AFLEVERINGSDATO]])=0)*(LEN(Bøger[[#This Row],[UDLÅNSDATO]])>0),0)","v":0},"Karel Florian","nogen@example.com","+45 02 02 02 02","Peter Pedal",{"$f":"DATE(YEAR(TODAY()),2,17)","v":"2018-02-17"},{"$f":"DATE(YEAR(TODAY()),2,22)","v":"2018-02-22"},{"$f":"IFERROR(IF(Bøger[[#This Row],[AFLEVERINGSDATO]]=\"\",IF(Bøger[[#This Row],[UDLÅNSDATO]]<>\"\", TODAY()-Bøger[[#This Row],[UDLÅNSDATO]],\"\"),Bøger[[#This Row],[AFLEVERINGSDATO]]-Bøger[[#This Row],[UDLÅNSDATO]]), \"\")","v":5}]
[{"$f":"IFERROR(((Bøger[[#This Row],[UDLÅNSDATO]]+Daggrænse)<TODAY())*(LEN(Bøger[[#This Row],[AFLEVERINGSDATO]])=0)*(LEN(Bøger[[#This Row],[UDLÅNSDATO]])>0),0)","v":0},"Scott Haberkorn","nogen@example.com","+45 03 03 03 03","Utilfredse Freddy",{"$f":"DATE(YEAR(TODAY()),2,17)","v":"2018-02-17"},{"$f":"DATE(YEAR(TODAY()),2,25)","v":"2018-02-25"},{"$f":"IFERROR(IF(Bøger[[#This Row],[AFLEVERINGSDATO]]=\"\",IF(Bøger[[#This Row],[UDLÅNSDATO]]<>\"\", TODAY()-Bøger[[#This Row],[UDLÅNSDATO]],\"\"),Bøger[[#This Row],[AFLEVERINGSDATO]]-Bøger[[#This Row],[UDLÅNSDATO]]), \"\")","v":8}]
[{"$f":"IFERROR(((Bøger[[#This Row],[UDLÅNSDATO]]+Daggrænse)<TODAY())*(LEN(Bøger[[#This Row],[AFLEVERINGSDATO]])=0)*(LEN(Bøger[[#This Row],[UDLÅNSDATO]])>0),0)","v":0},"Lola Jacobsen","nogen@example.com","+45 04 04 04 04","Emil fra Lønneberg",{"$f":"DATE(YEAR(TODAY()),2,18)","v":"2018-02-18"},{"$f":"DATE(YEAR(TODAY()),2,28)","v":"2018-02-28"},{"$f":"IFERROR(IF(Bøger[[#This Row],[AFLEVERINGSDATO]]=\"\",IF(Bøger[[#This Row],[UDLÅNSDATO]]<>\"\", TODAY()-Bøger[[#This Row],[UDLÅNSDATO]],\"\"),Bøger[[#This Row],[AFLEVERINGSDATO]]-Bøger[[#This Row],[UDLÅNSDATO]]), \"\")","v":10}]
[{"$f":"IFERROR(((Bøger[[#This Row],[UDLÅNSDATO]]+Daggrænse)<TODAY())*(LEN(Bøger[[#This Row],[AFLEVERINGSDATO]])=0)*(LEN(Bøger[[#This Row],[UDLÅNSDATO]])>0),0)","v":1},"Melissa Kerr","nogen@example.com","+45 05 05 05 05","Narnia-fortællingerne",{"$f":"DATE(YEAR(TODAY()),1,23)","v":"2018-01-23"},null,{"$f":"IFERROR(IF(Bøger[[#This Row],[AFLEVERINGSDATO]]=\"\",IF(Bøger[[#This Row],[UDLÅNSDATO]]<>\"\", TODAY()-Bøger[[#This Row],[UDLÅNSDATO]],\"\"),Bøger[[#This Row],[AFLEVERINGSDATO]]-Bøger[[#This Row],[UDLÅNSDATO]]), \"\")","v":162}]
[{"$f":"IFERROR(((Bøger[[#This Row],[UDLÅNSDATO]]+Daggrænse)<TODAY())*(LEN(Bøger[[#This Row],[AFLEVERINGSDATO]])=0)*(LEN(Bøger[[#This Row],[UDLÅNSDATO]])>0),0)","v":0},"Sharon Salavaria","nogen@example.com","+45 06 06 06 06","Halfdans ABC",{"$f":"TODAY()","v":"2018-07-04"},null,{"$f":"IFERROR(IF(Bøger[[#This Row],[AFLEVERINGSDATO]]=\"\",IF(Bøger[[#This Row],[UDLÅNSDATO]]<>\"\", TODAY()-Bøger[[#This Row],[UDLÅNSDATO]],\"\"),Bøger[[#This Row],[AFLEVERINGSDATO]]-Bøger[[#This Row],[UDLÅNSDATO]]), \"\")","v":0}]